Cogmind - Beta 16 @@@ ROGUE MODE // 2025.10.23 @ 10:18:09 Player: Cheeseinator Result: Destroyed by G-47 Trooper with Particle Gun Performance ------------- Evolutions (1) 500 Regions Visited (3) 600 Robots Destroyed (60) 300 Value Destroyed (1246) 1246 Prototype IDs (0) 0 Alien Tech Used (0) 0 Bonus (45) 45 TOTAL SCORE: 2691 Bonus ------- High Alert Combat Kills 45 Cogmind --------- Core Integrity 0/400 Matter 275/300 Energy 465/465 System Corruption 0% Temperature Cool (15) Movement Walking (190) Ox1 Location -9/Materials Parts ------- > --- POWER (1) -------- Improved Ion Engine > --- PROPULSION (2) --- Aluminum Leg > --- UTILITY (4) ------ Large Battery Weight Redist. System Structural Scanner Improved Signal Interpreter > --- WEAPON (2) ------- Heavy Hammer Heavy Hammer > --- INVENTORY (5) ---- Light Ion Engine Mining Laser Heavy Hammer Heavy Hammer Peak State ------------ > --- POWER ------------ Ion Engine > --- PROPULSION ------- Carbon-fiber Leg Carbon-fiber Leg > --- UTILITY ---------- Small Storage Unit Improved Signal Interpreter Reaction Control System Propulsion Shielding > --- WEAPON ----------- Heavy Hammer Heavy Hammer > --- INVENTORY -------- Carbon-fiber Leg Carbon-fiber Leg Large Battery Tractor Beam Heavy Hammer Heavy Hammer Heavy Hammer Heavy Hammer [Rating: 20] Favorites ----------- Power Ion Engine Engine Ion Engine Propulsion Light Treads Treads Light Treads Leg Carbon-fiber Leg Utility Small Storage Unit Device Reaction Control System Storage Small Storage Unit Processor Signal Interpreter Protection Propulsion Shielding Weapon Heavy Hammer Energy Gun EM Pulse Gun Ballistic Gun Assault Rifle Impact Weapon Heavy Hammer Build | -11 -10 -10 -9 ------- Run | Yrd Mat Min Mat Slots Evolved 2 | . . . 2 Power . | . . . . Propulsion . | . . . . Utility 2 | . . . 2 Weapon . | . . . . Parts Attached 33 | 6 4 2 21 Power 5 | 1 . 1 3 Engine 5 | 1 . 1 3 Core . | . . . . Reactor . | . . . . Propulsion 8 | 2 . . 6 Treads 3 | 2 . . 1 Leg 5 | . . . 5 Wheel . | . . . . Hover . | . . . . Flight . | . . . . Utility 12 | . 2 1 9 Device 6 | . . . 6 Storage 2 | . . 1 1 Processor 3 | . 2 . 1 Hackware . | . . . . Protection 1 | . . . 1 Artifact . | . . . . Weapon 8 | 3 2 . 3 Energy Gun 2 | 2 . . . Energy Cannon . | . . . . Ballistic Gun 1 | 1 . . . Ballistic Cannon . | . . . . Launcher . | . . . . Special Weapon . | . . . . Impact Weapon 5 | . 2 . 3 Slashing Weapon . | . . . . Piercing Weapon . | . . . . Special Melee Weapon . | . . . . Unidentified Prototypes . | . . . . Corrupted Parts 1 | . . 1 . System Corruption 3 | . . 3 . Parts Lost 11 | . . . 11 Power 2 | . . . 2 Propulsion 3 | . . . 3 Utility 6 | . . . 6 Weapon . | . . . . Highest Loss Streak 3 | . . . 3 To Critical Strikes . | . . . . Average Backups 6 | 2 4 6 7 Power . | . . . . Propulsion . | 1 . . 1 Utility 1 | . . 1 2 Weapon 3 | . 3 4 3 Tool/Special . | . . . . Unused Backups 9 | . 4 . 5 Power . | . . . . Propulsion 6 | . 4 . 2 Utility 2 | . . . 2 Weapon 1 | . . . 1 Tool/Special . | . . . . Average Slot Usage (%) 85 | . 72 99 85 Engine 11 | . 14 13 10 Treads 15 | . 28 28 7 Leg 8 | . . . 14 Device 3 | . . . 5 Storage 8 | . . 10 10 Processor 10 | . 3 17 10 Protection 2 | . . . 4 Impact Weapon 23 | . 24 28 22 Peak Build Rating 20 | 5 9 10 20 Average Rating 11 | 4 6 9 14 On Entrance 6 | . 5 9 10 Avg Prop Armor Cover (%) . | . . . . Naked Turns . | . . . . Heaviest Build 20 | 9 11 16 20 Greatest Support 40 | 40 40 40 40 Greatest Overweight (x) 5 | 1 . . 5 Average Overweight (x) . | . . . . Largest Inventory Capacity 8 | 5 5 8 8 Average Capacity 6 | 5 5 7 7 Most Carried 8 | 5 5 8 8 Average Carried 6 | 2 4 6 7 Final Capacity 8 | 5 5 8 5 Final Carried 7 | 4 5 7 4 Class Distribution -------------------- 97% | Mutant Dominant Class ---------------- Mutant | -10/Materials Mutant | -10/Mines Mutant | -9/Materials Resources | -11 -10 -10 -9 ----------- Run | Yrd Mat Min Mat Matter Collected 604 | 287 46 44 227 Remotely . | . . . . Salvage Created 2008 | 114 188 314 1392 Parts 74 | 4 5 3 62 Haulers Intercepted . | . . . . Recyclers Shooed . | . . . . Parts Field Recycled . | . . . . Retrieved Matter . | . . . . Parts Self-Destructed . | . . . . Prevented . | . . . . Parts Restored . | . . . . Kills | -11 -10 -10 -9 ------- Run | Yrd Mat Min Mat Combat Hostiles Destroyed 38 | . 4 2 32 Melee 23 | . 2 1 20 Classes Destroyed 7 | 2 4 . 1 Worker 4 | . 1 . 3 Tunneler 6 | 2 . 2 2 Recycler 6 | 1 . 2 3 Watcher 6 | . 3 . 3 Swarmer 14 | . 1 . 13 Grunt 18 | . 3 2 13 Sentry 6 | . . . 6 Best Kill Streak 5 | 1 2 3 5 Combat Bots Only 5 | . 2 2 5 Max Kills in Single Turn 1 | 1 1 1 1 Gunslinging . | . . . . Exploded . | . . . . Melee 1 | . 1 1 1 Uniques/NPCs Destroyed . | . . . . Combat | -11 -10 -10 -9 -------- Run | Yrd Mat Min Mat Hostile Shots Fired 245 | . 26 4 215 Missed 80 | . 7 . 73 Hits 165 | . 19 4 142 Projectile 165 | . 19 4 142 Critical Strikes 4 | . . . 4 Damage Taken 1806 | . 168 45 1593 Core 488 | . 65 21 402 Absorbed by Shields . | . . . . Redirected to Shielding 33 | . . . 33 Regen/Repaired (Parts) 31 | . . . 31 Core Remaining (%) 82 | 100 . 65 . Volleys Fired 11 | 9 2 . . Largest 2 | 2 2 . . Hottest 60 | 60 60 . . Shots Fired 22 | 18 4 . . Gun 22 | 18 4 . . Cannon . | . . . . Launcher . | . . . . Special . | . . . . Kinetic 11 | 9 2 . . Thermal 2 | . 2 . . Explosive . | . . . . Electromagnetic 9 | 9 . . . Robot Hit Streak 11 | 11 . . . Robot Miss Streak 2 | 2 . . . Penetration Max . | . . . . Secondary Targets . | . . . . Shots Hit Robots 107 | 12 12 7 76 Core Hits 26 | 4 2 1 19 Critical Kills 5 | . 2 . 3 Critical Parts Destroyed 17 | . 2 2 13 Critical Strikes 22 | . 4 2 16 Smash 22 | . 4 2 16 Melee Attacks 151 | . 28 7 116 Impact 151 | . 28 7 116 Slashing . | . . . . Piercing . | . . . . Sneak Attacks 15 | . 2 3 10 Combat Hostiles 1 | . 1 . . Follow-up Attacks 9 | . . . 9 Damage Inflicted 4404 | 158 582 388 3276 Guns 158 | 158 . . . Cannons . | . . . . Explosions . | . . . . Melee 4238 | . 582 380 3276 Ramming 8 | . . 8 . Kinetic 64 | 64 . . . Thermal . | . . . . Explosive . | . . . . Electromagnetic 94 | 94 . . . Impact 4238 | . 582 380 3276 Slashing . | . . . . Piercing . | . . . . Highest Corruption 3 | . . 3 . Average Corruption 3 | . . 3 . Corruption Purged . | . . . . Corruption Blocked . | . . . . Effects 7 | . . 7 . Message Errors 1 | . . 1 . Matter Fused 2 | . . 2 . Data Loss (major) 4 | . . 4 . Overload Shots . | . . . . Overflow Damage 1499 | . 225 234 1040 Projectiles . | . . . . Explosions . | . . . . Melee 1499 | . 225 234 1040 Knockbacks 15 | . 3 1 11 Impact 15 | . 3 1 11 Kinetic . | . . . . Secondary . | . . . . Self-Inflicted Damage . | . . . . Shots . | . . . . Rammed 2 | . . 2 . Targets Rammed 2 | . . 2 . Kicked . | . . . . Crushed . | . . . . Highest Temperature 7 | . . . 7 Average Temperature 5 | . . . 5 Received Heat Transfer 600 | . 42 27 531 Siege Activations . | . . . . Martial Activations . | . . . . Shielding Activations . | . . . . Robots Disrupted . | . . . . Combat Hostiles . | . . . . Robots Corrupted 24 | . 4 4 16 Combat Hostiles 15 | . 2 1 12 Parts Fried 36 | . 5 13 18 Impact Corruptions 61 | . 11 10 40 Robots Melted . | . . . . Combat Hostiles . | . . . . Parts Melted . | . . . . Heat Transferred . | . . . . Parts Sabotaged . | . . . . Parts Stolen . | . . . . Parts Stripped . | . . . . Power Chain Reactions . | . . . . Alert | -11 -10 -10 -9 ------- Run | Yrd Mat Min Mat Maximum Alert Level 2 | . . . 2 Low Security (%) 74 | 100 100 100 54 Level 1 11 | . . . 19 Level 2 14 | . . . 25 Level 3 . | . . . . Level 4 . | . . . . Level 5 . | . . . . High Security . | . . . . Max Security . | . . . . Peak Influence 559 | 5 75 50 559 Initial 28 | . . 28 . Average 119 | . 9 9 208 Influence Increases 1263 | 15 188 70 990 Destroy 0b10 Robot/C 760 | . 80 40 640 Destroy 0b10 Robot/NC 110 | 15 20 20 55 Destroy Leader 202 | . 36 10 156 Disable Machine 30 | . 15 . 15 Destroy Structure 11 | . 7 . 4 Lose Combat Pursuer 150 | . 30 . 120 Influence Decreases 742 | 15 113 145 469 Entered New Map 47 | . . 47 . Time Decay 605 | 15 113 98 379 Lost Part 90 | . . . 90 Squads Dispatched 10 | . 1 . 9 Investigation 3 | . . . 3 Extermination . | . . . . Reinforcement 6 | . 1 . 5 Assault 1 | . . . 1 Garrison . | . . . . Intercept . | . . . . Searches Triggered . | . . . . Construction Impeded . | . . . . Haulers Reinforced . | . . . . Active Scanning Responses . | . . . . Cargo Convoy Interrupts . | . . . . Stealth | -11 -10 -10 -9 --------- Run | Yrd Mat Min Mat Distress Signals 2 | . . . 2 Communications Jammed . | . . . . Distress Signals . | . . . . Times Spotted 75 | . 12 2 61 Peak Tracking Total 6 | . 3 2 6 Tactical Retreats 6 | . 1 . 5 Traps | -11 -10 -10 -9 ------- Run | Yrd Mat Min Mat Traps Triggered 3 | . . . 3 Indirectly . | . . . . Trap Hack Attempts . | . . . . Triggered . | . . . . Disarmed . | . . . . Reprogrammed . | . . . . Reused . | . . . . Traps Extracted . | . . . . Installed . | . . . . Triggered . | . . . . Machines | -11 -10 -10 -9 ---------- Run | Yrd Mat Min Mat Machines Disabled 3 | . 2 . 1 Max in Single Turn 1 | . 1 . 1 Machines Repaired . | . . . . Machines Dismantled . | . . . . Machines Sabotaged . | . . . . Overloaded Fab Kills . | . . . . Hacking | -11 -10 -10 -9 --------- Run | Yrd Mat Min Mat Machines Accessed 5 | . 1 . 4 Terminals 2 | . . . 2 Fabricators . | . . . . Repair Stations 1 | . . . 1 Recycling Units 2 | . 1 . 1 Scanalyzers . | . . . . Garrison Access . | . . . . Total Hacks 17 | . 3 . 14 Successful 9 | . 1 . 8 Failed 8 | . 2 . 6 Catastrophic 1 | . 1 . . Database Lockouts . | . . . . Manual 2 | . . . 2 Terminals 7 | . . . 7 Fabricators . | . . . . Repair Stations 5 | . . . 5 Recycling Units 5 | . 3 . 2 Scanalyzers . | . . . . Garrison Access . | . . . . Terminal Hacks 1 | . . . 1 Alert Level 1 | . . . 1 Fabricator Hacks . | . . . . Repair Station Hacks 5 | . . . 5 Scan Component 4 | . . . 4 Repair 1 | . . . 1 Recycling Unit Hacks 3 | . 1 . 2 Report Inventory 2 | . 1 . 1 Retrieve Matter 1 | . . . 1 Scanalyzer . | . . . . Garrison Access Hacks . | . . . . Unauthorized Hacks . | . . . . Terminals . | . . . . Fabricators . | . . . . Repair Stations . | . . . . Recycling Units . | . . . . Scanalyzers . | . . . . Garrison Access . | . . . . Data Cores Recovered . | . . . . Used . | . . . . Hacking Detections 4 | . 1 . 3 Full Trace Events 2 | . 1 . 1 Feedback Events . | . . . . Feedback Blocked . | . . . . Robot Schematics Acquired . | . . . . Robots Built . | . . . . Authchips . | . . . . Time . | . . . . Total Robot Build Rating . | . . . . Part Schematics Acquired . | . . . . Parts Built . | . . . . Authchips . | . . . . Time . | . . . . Total Part Build Rating . | . . . . Part Studies Acquired . | . . . . Parts Repaired 1 | . . . 1 Time 36 | . . . 36 Parts Recycled . | . . . . Recycled Matter . | . . . . Retrieved Matter . | . . . . Retrieved Components . | . . . . Parts Scanalyzed . | . . . . Part Schematics Acquired . | . . . . Parts Damaged . | . . . . Bothacking | -11 -10 -10 -9 ------------ Run | Yrd Mat Min Mat Used RIF Installer . | . . . . Robots Hacked . | . . . . Non-combat . | . . . . Combat . | . . . . Robot Hacks Applied . | . . . . Relay Couplers Released . | . . . . Fabnet Peak Effective % . | . . . . Robots Rewired . | . . . . Allies Hacked . | . . . . Hacks Repelled . | . . . . Allies | -11 -10 -10 -9 -------- Run | Yrd Mat Min Mat Total Allies . | . . . . Largest Group . | . . . . Highest-Rated Group . | . . . . Highest-Rated Ally . | . . . . Total Orders . | . . . . Ally Attacks . | . . . . Total Damage . | . . . . Kills . | . . . . Allies Corrupted . | . . . . Allies Melted . | . . . . Intel | -11 -10 -10 -9 ------- Run | Yrd Mat Min Mat Active Infowar (turns) 135 | . . . 135 Structural 135 | . . . 135 Robot Analysis Total . | . . . . Derelict Logs Recovered 1 | . . 1 . Drone Launches . | . . . . Drone Recoveries . | . . . . Exploration | -11 -10 -10 -9 ------------- Run | Yrd Mat Min Mat Turns Passed 3000 | 288 519 518 1675 Spaces Moved 1527 | 161 236 300 830 Core 30 | 29 . . 1 Treads 914 | 132 236 300 246 Legs 583 | . . . 583 Wheels . | . . . . Hover . | . . . . Flight . | . . . . Fastest Speed 50 | 50 160 160 120 Average Speed 143 | 141 160 160 132 Slowest Speed 300 | 160 160 160 300 Overloaded Moves . | . . . . Propulsion Burnouts . | . . . . Robots Hopped . | . . . . Potential Cave-ins . | . . . . Cave-ins Triggered . | . . . . Exploration Rate (%) 33 | 6 38 29 62 Regions Visited 3 Branch Regions 1 Pre-discovered Areas . | . . . . Known Exits Taken 2 | . 1 1 . Unknown Exits Taken 1 | 1 . . . Scrap Searched 1 | . . 1 . Spaces Dug 11 | . 7 . 4 Terrain Destroyed 11 | . 7 . 4 Melee 11 | . 7 . 4 Projectile . | . . . . AOE . | . . . . Terrain Rammed . | . . . . Walls Destroyed . | . . . . Machines Disabled . | . . . . Actions | -11 -10 -10 -9 --------- Run | Yrd Mat Min Mat Total 2079 | 201 329 325 1224 Wait 319 | 20 49 8 242 Move 1524 | 160 235 299 830 Hop . | . . . . Pick Up 25 | 5 5 3 12 Fast Attach 21 | 5 4 2 10 Attach 10 | 1 . . 9 Detach 9 | . 2 1 6 Swap 9 | . . 1 8 Drop 18 | 1 6 2 9 Fire 11 | 9 2 . . Melee 131 | . 26 7 98 Ram . | . . . . Kick . | . . . . Crush 2 | . . 2 . Escape Stasis . | . . . . Rewire . | . . . . Trap . | . . . . Miscellaneous . | . . . . Route ------- -11/Scrapyard -10/Materials -10/Mines -9/Materials (discovered 4 exits: [*Mat x2] / *Min / *Sto) History --------- Turn | Location | Event 4 | -11/Scrapyard | Discovered new exit (range 15) 289 | -11/Scrapyard | Entered Materials 309 | -10/Materials | Build established: Mutant 546 | -10/Materials | Discovered new exit (range 12) 765 | -10/Materials | Identified exit to Mines 808 | -10/Materials | Entered Mines 824 | -10/Mines | Discovered new exit (range 9) 837 | -10/Mines | Identified exit to Materials 1326 | -10/Mines | Entered Materials 1326 | -9/Materials | Evolved 2 slots: Utility x2 1327 | -9/Materials | Identified exit to Storage 1597 | -9/Materials | Repaired Corrupted Lgt. Treads 2405 | -9/Materials | Discovered new exit (range 16) 2490 | -9/Materials | Core integrity fell below 50% 2769 | -9/Materials | Discovered new exit (range 10) 2820 | -9/Materials | Core integrity fell below 20% 2850 | -9/Materials | Lost 3 parts (3u) 2915 | -9/Materials | Discovered new exit (range 11) 2926 | -9/Materials | First assault squad dispatched 2928 | -9/Materials | Identified exit to Mines 3001 | -9/Materials | Destroyed by G-47 Trooper with Particle Gun Last Messages --------------- 02828_ K-01 Serf collects debris. 02832_ Acquired 10 matter. 02836_ K-01 Serf collects debris. 02866_ Acquired Structural Scanner. 02879_ K-01 Serf collects debris. 02915_ EXIT=FOUND 02926_ ALERT: Unidentified disturbance in Zone 1B, assault force dispatched. 02928_ EXIT=IDENTIFIED: MINES 02949_ O-16 Technician: "IFF HANDSHAKE FAILED. SECURING TERMINAL." 02950_ Hvy. Hammer follow-up attack on O-16 Technician. 02956_ ALERT: Hostiles spotted, dispatching reinforcements to Terminal M009. 02978_ C-45 Heavy ARC bursts open, deploying its payload. 02978_ G-47 Trooper unfolds itself. 02978_ G-34 Mercenary unfolds itself. 02978_ I-25 Savior unfolds itself. 02978_ Critical hit (Burn: +37). 02993_ Carbon-fiber Leg destroyed. 02999_ Acquired Mining Laser. Map ----- +----------------------------------------------------+ | # # ##### ###########? | | # # | | # T | | ???????? # | | ???????? # " ##### ############ | | ???????? ## "%################??????? | | ???????? ## "###?#########?????????? | | ?????????## #########?????????????? | | ?????????## #########?????????????? | | ?????????## # ]=[##?????????????? | | ????????? # # ]=[##?????????????? | | ????????? # # ][ ##?????????????? | | ????????? /o + ##??????? ####?? | | ????????? # io# ##??????? ####?? | | ????????? # # ##??????? + # | | ????????? #g #####+###??????? # #### | | ?????????##ggg##### ###??????? # # | | ?????????## ##?## ##? # + | | ????????### ##### ##?####+#### # | | ???????#### ##### ##?## ### #### | | ???????### #### ##?## " | | ???????## ### ##?## | | ???????## ### ##### ### #### | | ???????## > ### ###### #### #### | | ???????## ## #### ##?? | | ???????##"" @ ""## ####+##?? | | ???????###"| |"### """" ## ?? | | ???????####"""#### """" ## ?????? | | ????????########## """" # ?????? | | ?????????###### # ?????? | | ?????????????## + ?????? | | ?????????????####+####### # ?????? | | ????????????? ######## ?????? | | ???????????????????????####### ?????? | | ????????????????????????????????????? | | ????????????????????????????????????? | | ????????????????????????????????????? | | | | | | | | | | | | | | | | | | | | | | | | | | | +----------------------------------------------------+ Best States ------------- Heat Dissipation 38 Energy Generation 12 Energy Capacity 465 Matter Stores 300 Matter Capacity 300 Sight Range 16 Terrain Scan Density 10 Additional Mass Support 6 Propulsion Shielding 33 Evasion (%) 63 Recoil Reduction 2 Item Schematics ----------------- None Robot Schematics ------------------ None Fabricated ------------ Nothing Repaired ---------- Lgt. Treads | 77% | -9/Materials | Corrupted Studied --------- None Alien Tech Used ----------------- None Achievements -------------- Deadly Force Challenges ------------ None Game ------ Seed BehemothFlightBiocell Manual? 0 Play Time 00:25:59 Cumulative 21.5 hours Start 2025.10.23 @ 09:51:23 End 2025.10.23 @ 10:18:09 Sessions 1 Manual Loads 0 Difficulty Rogue Special Mode None Game No. 33 Rogue 16 Adventurer 16 Explorer 1 Win Type - Total 0 Types 0/0/0/0/0/0/0/0/0/0 Lore% 9 Gallery% 24 Achievement% 16 Wizard Run 0 Options --------- Layout 0 ASCII 0 Keyboard 1 Movement Numpad Keybinds 0 Fullscreen 2 Font 18/SmallcapsGlow Map View 76x50 Zoom Use 2% Tactical HUD 1 Map Filters NONE Filters NONE Steam 1 RUN: 5bc73163-2600-479e-8947-42b090540373